[Event "Betsys MČR v online bleskovém šachu 2021"]
[Site "Chess.com"]
[Date "2021.04.17"]
[Round "12"]
[White "Emicka1330"]
[Black "alenka777"]
[Result "1-0"]
[WhiteElo "1550"]
[BlackElo "1280"]
[TimeControl "180+1"]
[EndTime "11:00:42 PDT"]
[Termination "Uživatel Emicka1330 zvítězil matem"]

1. e4 {[%clk 0:02:58]} 1... e5 {[%clk 0:02:58]} 2. d4 {[%clk 0:02:57.4]} 2...
exd4 {[%clk 0:02:57.1]} 3. Bc4 {[%clk 0:02:56.7]} 3... Nc6 {[%clk 0:02:57]} 4.
Nf3 {[%clk 0:02:56]} 4... Nf6 {[%clk 0:02:57.2]} 5. e5 {[%clk 0:02:54.3]} 5...
Ng4 {[%clk 0:02:55.8]} 6. Ng5 {[%clk 0:02:47.7]} 6... d5 {[%clk 0:02:51.3]} 7.
exd6 {[%clk 0:02:43.9]} 7... Be6 {[%clk 0:02:45.8]} 8. Nxe6 {[%clk 0:02:36.3]}
8... fxe6 {[%clk 0:02:41.4]} 9. Qxg4 {[%clk 0:02:31.6]} 9... Qxd6 {[%clk
0:02:38.6]} 10. Qxe6+ {[%clk 0:02:24.2]} 10... Qxe6+ {[%clk 0:02:38.1]} 11. Bxe6
{[%clk 0:02:24.3]} 11... Bd6 {[%clk 0:02:37.2]} 12. O-O {[%clk 0:02:21.2]} 12...
Ne7 {[%clk 0:02:29.9]} 13. Bg5 {[%clk 0:02:15.7]} 13... c5 {[%clk 0:02:29.6]}
14. Na3 {[%clk 0:02:12.2]} 14... a6 {[%clk 0:02:27.1]} 15. Nc4 {[%clk
0:02:10.5]} 15... Bc7 {[%clk 0:02:23.3]} 16. Rae1 {[%clk 0:02:06]} 16... Ng6
{[%clk 0:02:18.6]} 17. Bd5+ {[%clk 0:01:55.6]} 17... Kf8 {[%clk 0:02:16.8]} 18.
Bxb7 {[%clk 0:01:51.8]} 18... Re8 {[%clk 0:02:15.8]} 19. Rxe8+ {[%clk
0:01:44.7]} 19... Kxe8 {[%clk 0:02:15.1]} 20. Re1+ {[%clk 0:01:44]} 20... Kd7
{[%clk 0:02:10.4]} 21. Bxa6 {[%clk 0:01:41.9]} 21... h6 {[%clk 0:02:02.6]} 22.
Bb5+ {[%clk 0:01:40.2]} 22... Kc8 {[%clk 0:02:00.6]} 23. Bd2 {[%clk 0:01:37.3]}
23... Nf8 {[%clk 0:01:51.4]} 24. Ba5 {[%clk 0:01:31.7]} 24... Bxa5 {[%clk
0:01:47]} 25. Nxa5 {[%clk 0:01:31]} 25... Nd7 {[%clk 0:01:47.3]} 26. Bxd7+
{[%clk 0:01:28]} 26... Kxd7 {[%clk 0:01:46.6]} 27. Re5 {[%clk 0:01:26.5]} 27...
Kd6 {[%clk 0:01:46.3]} 28. Rf5 {[%clk 0:01:23.9]} 28... Re8 {[%clk 0:01:44.3]}
29. h3 {[%clk 0:01:23.4]} 29... g5 {[%clk 0:01:42.5]} 30. Rf6+ {[%clk
0:01:22.6]} 30... Kd5 {[%clk 0:01:41.8]} 31. Rxh6 {[%clk 0:01:21.6]} 31... c4
{[%clk 0:01:38.6]} 32. Rg6 {[%clk 0:01:20.3]} 32... d3 {[%clk 0:01:37.7]} 33.
Rxg5+ {[%clk 0:01:19.2]} 33... Kd4 {[%clk 0:01:38]} 34. Rg4+ {[%clk 0:01:15.4]}
34... Kc5 {[%clk 0:01:33.1]} 35. Rxc4+ {[%clk 0:01:09.8]} 35... Kb5 {[%clk
0:01:30.3]} 36. cxd3 {[%clk 0:01:03.8]} 36... Kxa5 {[%clk 0:01:27.7]} 37. b4+
{[%clk 0:01:00.8]} 37... Kb5 {[%clk 0:01:27]} 38. a4+ {[%clk 0:00:59.2]} 38...
Kxa4 {[%clk 0:01:26.6]} 39. h4 {[%clk 0:00:56.4]} 39... Kb5 {[%clk 0:01:25.3]}
40. h5 {[%clk 0:00:55.3]} 40... Re1+ {[%clk 0:01:25.6]} 41. Kh2 {[%clk
0:00:54.9]} 41... Rd1 {[%clk 0:01:25.9]} 42. Rd4 {[%clk 0:00:53.1]} 42... Re1
{[%clk 0:01:20.1]} 43. g4 {[%clk 0:00:51.7]} 43... Re6 {[%clk 0:01:17.8]} 44. g5
{[%clk 0:00:50.2]} 44... Kb6 {[%clk 0:01:16.5]} 45. g6 {[%clk 0:00:46.6]} 45...
Kc7 {[%clk 0:01:16.2]} 46. g7 {[%clk 0:00:43.9]} 46... Re8 {[%clk 0:01:14]} 47.
h6 {[%clk 0:00:43.3]} 47... Rg8 {[%clk 0:01:13.2]} 48. h7 {[%clk 0:00:39]} 48...
Rxg7 {[%clk 0:01:13]} 49. h8=Q {[%clk 0:00:38.3]} 49... Rf7 {[%clk 0:01:06.4]}
50. Qe5+ {[%clk 0:00:35.4]} 50... Kb6 {[%clk 0:01:04.3]} 51. Rd6+ {[%clk
0:00:33.7]} 51... Kb7 {[%clk 0:01:03.4]} 52. Qd5+ {[%clk 0:00:32.8]} 52... Kc8
{[%clk 0:00:57.4]} 53. Qxf7 {[%clk 0:00:31.2]} 53... Kb8 {[%clk 0:00:57.1]} 54.
Rd8# {[%clk 0:00:30.4]} 1-0

[Event "Betsys MČR v online bleskovém šachu 2021"]
[Site "Chess.com"]
[Date "2021.04.17"]
[Round "12"]
[White "Bavorak15"]
[Black "FaceOfLightning"]
[Result "0-1"]
[WhiteElo "1637"]
[BlackElo "1945"]
[TimeControl "180+1"]
[EndTime "11:00:44 PDT"]
[Termination "Uživatel FaceOfLightning zvítězil na čas"]

1. e4 {[%clk 0:03:00.9]} 1... c5 {[%clk 0:02:58.5]} 2. Nf3 {[%clk 0:03:01]} 2...
e6 {[%clk 0:02:58]} 3. d4 {[%clk 0:03:00.6]} 3... cxd4 {[%clk 0:02:57.1]} 4.
Nxd4 {[%clk 0:03:01.5]} 4... Nc6 {[%clk 0:02:56.7]} 5. Nc3 {[%clk 0:03:00.3]}
5... Qc7 {[%clk 0:02:54.4]} 6. a3 {[%clk 0:02:51.3]} 6... a6 {[%clk 0:02:53.7]}
7. g3 {[%clk 0:02:44.2]} 7... Nf6 {[%clk 0:02:52.9]} 8. Bg2 {[%clk 0:02:43.9]}
8... Nxd4 {[%clk 0:02:46.1]} 9. Qxd4 {[%clk 0:02:43.1]} 9... Bc5 {[%clk
0:02:46.1]} 10. Qd3 {[%clk 0:02:36.4]} 10... h6 {[%clk 0:02:44.8]} 11. O-O
{[%clk 0:02:13.2]} 11... O-O {[%clk 0:02:33.5]} 12. e5 {[%clk 0:02:13.5]} 12...
Qxe5 {[%clk 0:02:28.8]} 13. Bf4 {[%clk 0:02:09]} 13... Qd4 {[%clk 0:02:19.6]}
14. Qe2 {[%clk 0:01:57.9]} 14... d5 {[%clk 0:02:10.6]} 15. Rad1 {[%clk
0:01:56.9]} 15... Qc4 {[%clk 0:02:10]} 16. Qe5 {[%clk 0:01:48.4]} 16... d4
{[%clk 0:01:23.4]} 17. Bxh6 {[%clk 0:01:16]} 17... dxc3 {[%clk 0:01:12.7]} 18.
Bxg7 {[%clk 0:01:09.8]} 18... Kxg7 {[%clk 0:00:56]} 19. Qg5+ {[%clk 0:01:07.1]}
19... Kh7 {[%clk 0:00:50.6]} 20. Qxf6 {[%clk 0:01:05.8]} 20... cxb2 {[%clk
0:00:28.8]} 21. Rd3 {[%clk 0:00:39.7]} 21... e5 {[%clk 0:00:20.2]} 22. Kh1
{[%clk 0:00:03.2]} 22... Be6 {[%clk 0:00:11.7]} 23. f4 {[%clk 0:00:02.8]} 23...
Rg8 {[%clk 0:00:07.4]} 0-1

[Event "Betsys MČR v online bleskovém šachu 2021"]
[Site "Chess.com"]
[Date "2021.04.17"]
[Round "12"]
[White "Jindrich4321"]
[Black "pepca"]
[Result "1-0"]
[WhiteElo "1932"]
[BlackElo "1549"]
[TimeControl "180+1"]
[EndTime "11:00:46 PDT"]
[Termination "Uživatel Jindrich4321 zvítězil po vzdání soupeře"]

1. d4 {[%clk 0:03:00.9]} 1... d5 {[%clk 0:02:59.8]} 2. Nf3 {[%clk 0:02:59.9]}
2... Nf6 {[%clk 0:02:56.4]} 3. Bf4 {[%clk 0:03:00.1]} 3... e6 {[%clk 0:02:54.8]}
4. e3 {[%clk 0:03:00.5]} 4... c5 {[%clk 0:02:53.9]} 5. c3 {[%clk 0:02:59.6]}
5... Nc6 {[%clk 0:02:52.7]} 6. Bd3 {[%clk 0:02:57.8]} 6... a6 {[%clk 0:02:51.5]}
7. Nbd2 {[%clk 0:02:56]} 7... b5 {[%clk 0:02:43.2]} 8. O-O {[%clk 0:02:51.4]}
8... b4 {[%clk 0:02:40.7]} 9. Ne5 {[%clk 0:02:48.2]} 9... Nxe5 {[%clk 0:02:34]}
10. dxe5 {[%clk 0:02:47.5]} 10... Nd7 {[%clk 0:02:29.8]} 11. Bg3 {[%clk
0:02:42]} 11... Qc7 {[%clk 0:02:23.2]} 12. f4 {[%clk 0:02:38.3]} 12... bxc3
{[%clk 0:02:17.1]} 13. bxc3 {[%clk 0:02:37.3]} 13... Bb7 {[%clk 0:02:14.9]} 14.
Rb1 {[%clk 0:02:34.1]} 14... Be7 {[%clk 0:02:11.6]} 15. Qh5 {[%clk 0:02:29.7]}
15... c4 {[%clk 0:01:59.4]} 16. Bc2 {[%clk 0:02:27.4]} 16... Nc5 {[%clk
0:01:59.3]} 17. Kh1 {[%clk 0:02:14.9]} 17... Nd3 {[%clk 0:01:58.4]} 18. f5
{[%clk 0:02:00.6]} 18... O-O {[%clk 0:01:38.6]} 19. f6 {[%clk 0:01:52.9]} 19...
gxf6 {[%clk 0:01:30.5]} 20. exf6 {[%clk 0:01:51.2]} 20... Bxf6 {[%clk
0:01:23.8]} 21. Rxf6 {[%clk 0:01:48.8]} 21... Qe7 {[%clk 0:01:20.7]} 22. Rh6
{[%clk 0:01:34.6]} 22... f5 {[%clk 0:01:15.8]} 23. Bh4 {[%clk 0:01:19.7]} 23...
Qg7 {[%clk 0:01:08.9]} 24. Nf3 {[%clk 0:01:04.3]} 24... Ra7 {[%clk 0:00:55.5]}
25. Rxe6 {[%clk 0:01:00.9]} 25... Bc8 {[%clk 0:00:51.5]} 26. Re8 {[%clk
0:00:52.9]} 26... Rf7 {[%clk 0:00:44.4]} 27. Rxf8+ {[%clk 0:00:48]} 27... Rxf8
{[%clk 0:00:43.8]} 28. Qg5 {[%clk 0:00:41.3]} 28... Qxg5 {[%clk 0:00:41.8]} 29.
Bxg5 {[%clk 0:00:40.4]} 29... Nf2+ {[%clk 0:00:41]} 30. Kg1 {[%clk 0:00:39]}
30... Ne4 {[%clk 0:00:40.9]} 31. Bxe4 {[%clk 0:00:36.4]} 31... fxe4 {[%clk
0:00:35.6]} 32. Nd4 {[%clk 0:00:35.9]} 32... Kg7 {[%clk 0:00:25.9]} 33. Bf4
{[%clk 0:00:35.1]} 33... Bd7 {[%clk 0:00:19.6]} 34. g3 {[%clk 0:00:34.7]} 34...
Rc8 {[%clk 0:00:17.5]} 35. Rb7 {[%clk 0:00:33.2]} 35... Rd8 {[%clk 0:00:16.4]}
36. Bg5 {[%clk 0:00:32.1]} 36... Re8 {[%clk 0:00:03.3]} 1-0

[Event "Betsys MČR v online bleskovém šachu 2021"]
[Site "Chess.com"]
[Date "2021.04.17"]
[Round "12"]
[White "Simago"]
[Black "Loveforever_Pepi"]
[Result "0-1"]
[WhiteElo "2101"]
[BlackElo "2278"]
[TimeControl "180+1"]
[EndTime "11:00:47 PDT"]
[Termination "Uživatel Loveforever_Pepi zvítězil na čas"]

1. e4 {[%clk 0:03:00.9]} 1... c5 {[%clk 0:02:58.6]} 2. Nf3 {[%clk 0:03:00.4]}
2... d6 {[%clk 0:02:57.8]} 3. d4 {[%clk 0:02:59.6]} 3... cxd4 {[%clk 0:02:57.1]}
4. Nxd4 {[%clk 0:02:59.8]} 4... Nf6 {[%clk 0:02:57.4]} 5. Nc3 {[%clk 0:02:59.8]}
5... g6 {[%clk 0:02:57.6]} 6. Be3 {[%clk 0:02:54]} 6... Bg7 {[%clk 0:02:57.5]}
7. f3 {[%clk 0:02:52.9]} 7... O-O {[%clk 0:02:56.8]} 8. Bc4 {[%clk 0:02:52.4]}
8... Nc6 {[%clk 0:02:56.4]} 9. Bb3 {[%clk 0:02:51.8]} 9... Bd7 {[%clk 0:02:56]}
10. Qd2 {[%clk 0:02:51.7]} 10... Ne5 {[%clk 0:02:53.5]} 11. O-O-O {[%clk
0:02:51.5]} 11... Qa5 {[%clk 0:02:52.7]} 12. Kb1 {[%clk 0:02:50.8]} 12... Rfc8
{[%clk 0:02:51.7]} 13. h4 {[%clk 0:02:50.6]} 13... b5 {[%clk 0:02:43.4]} 14. g4
{[%clk 0:02:42.6]} 14... Nc4 {[%clk 0:02:28.8]} 15. Bxc4 {[%clk 0:02:15.5]}
15... bxc4 {[%clk 0:02:28.5]} 16. Nd5 {[%clk 0:02:09.2]} 16... Qxd2 {[%clk
0:02:18.3]} 17. Rxd2 {[%clk 0:02:04]} 17... Nxd5 {[%clk 0:02:16.8]} 18. exd5
{[%clk 0:02:03.5]} 18... c3 {[%clk 0:02:14.5]} 19. Rd3 {[%clk 0:01:42.1]} 19...
cxb2 {[%clk 0:01:51.8]} 20. Rb3 {[%clk 0:01:23.2]} 20... Rc4 {[%clk 0:01:50]}
21. Rd1 {[%clk 0:01:19.3]} 21... Ba4 {[%clk 0:01:45.8]} 22. Rxb2 {[%clk
0:01:16]} 22... Rac8 {[%clk 0:01:43]} 23. Rd2 {[%clk 0:01:10.7]} 23... h6 {[%clk
0:01:32.5]} 24. Bf2 {[%clk 0:00:53.3]} 24... Kh7 {[%clk 0:01:10.2]} 25. Be3
{[%clk 0:00:43.1]} 25... Rc3 {[%clk 0:00:55.1]} 26. Bg1 {[%clk 0:00:04.8]} 26...
Bxd4 {[%clk 0:00:29.7]} 27. Rxd4 {[%clk 0:00:04.4]} 27... Bxc2+ {[%clk
0:00:27.9]} 28. Ka1 {[%clk 0:00:02.6]} 28... Bd3 {[%clk 0:00:16.3]} 0-1

[Event "Betsys MČR v online bleskovém šachu 2021"]
[Site "Chess.com"]
[Date "2021.04.17"]
[Round "12"]
[White "Saygram"]
[Black "conysek"]
[Result "0-1"]
[WhiteElo "2376"]
[BlackElo "2139"]
[TimeControl "180+1"]
[EndTime "11:00:48 PDT"]
[Termination "Uživatel conysek zvítězil po vzdání soupeře"]

1. e4 {[%clk 0:03:00.9]} 1... e5 {[%clk 0:02:59.6]} 2. f4 {[%clk 0:03:00.8]}
2... exf4 {[%clk 0:02:58.6]} 3. Nf3 {[%clk 0:03:00.9]} 3... g5 {[%clk
0:02:58.6]} 4. h4 {[%clk 0:03:00.5]} 4... g4 {[%clk 0:02:57.5]} 5. Ne5 {[%clk
0:03:01]} 5... h5 {[%clk 0:02:57.7]} 6. Bc4 {[%clk 0:02:59.8]} 6... Nh6 {[%clk
0:02:57.9]} 7. d4 {[%clk 0:02:59.4]} 7... d6 {[%clk 0:02:57.8]} 8. Nd3 {[%clk
0:02:59.3]} 8... Bg7 {[%clk 0:02:57.8]} 9. c3 {[%clk 0:02:52.5]} 9... Qe7 {[%clk
0:02:40.3]} 10. Bxf4 {[%clk 0:02:48.5]} 10... Qxe4+ {[%clk 0:02:38]} 11. Kd2
{[%clk 0:02:48.7]} 11... Qxg2+ {[%clk 0:02:33]} 12. Kc1 {[%clk 0:02:47.1]} 12...
O-O {[%clk 0:02:31.4]} 13. Nd2 {[%clk 0:02:45.2]} 13... Bf5 {[%clk 0:02:22.1]}
14. Rh2 {[%clk 0:02:43.2]} 14... Qc6 {[%clk 0:02:15.7]} 15. Nb4 {[%clk
0:02:35.2]} 15... Qd7 {[%clk 0:02:13.1]} 16. Nd5 {[%clk 0:02:31.6]} 16... c6
{[%clk 0:01:58.8]} 17. Bxh6 {[%clk 0:02:26.3]} 17... cxd5 {[%clk 0:01:57.8]} 18.
Bxg7 {[%clk 0:02:24.3]} 18... Kxg7 {[%clk 0:01:57.9]} 19. Bxd5 {[%clk
0:02:23.4]} 19... Nc6 {[%clk 0:01:53.7]} 20. Qf1 {[%clk 0:02:22.3]} 20... Bg6
{[%clk 0:01:52]} 21. b3 {[%clk 0:02:11.2]} 21... Rae8 {[%clk 0:01:51.8]} 22. Kb2
{[%clk 0:02:10.5]} 22... Re3 {[%clk 0:01:51.5]} 23. Re1 {[%clk 0:02:06.7]} 23...
Rfe8 {[%clk 0:01:48.9]} 24. Rxe3 {[%clk 0:02:06.5]} 24... Rxe3 {[%clk
0:01:49.8]} 25. Nc4 {[%clk 0:02:01.2]} 25... Re7 {[%clk 0:01:28.9]} 26. Qf4
{[%clk 0:01:58.7]} 26... Qf5 {[%clk 0:00:49.3]} 27. Qxf5 {[%clk 0:01:53]} 27...
Bxf5 {[%clk 0:00:48.4]} 28. Nxd6 {[%clk 0:01:52.5]} 28... Bg6 {[%clk 0:00:44.5]}
29. b4 {[%clk 0:01:38.7]} 29... Rd7 {[%clk 0:00:44.4]} 30. Bxc6 {[%clk
0:01:38.9]} 30... bxc6 {[%clk 0:00:43]} 31. Nc4 {[%clk 0:01:39]} 31... f6 {[%clk
0:00:35.1]} 32. Kc1 {[%clk 0:01:29]} 32... Be4 {[%clk 0:00:30.9]} 33. Re2 {[%clk
0:01:23.8]} 33... Bd3 {[%clk 0:00:23]} 34. Ne5 {[%clk 0:01:09.1]} 34... fxe5
{[%clk 0:00:22.6]} 35. Rxe5 {[%clk 0:01:09.5]} 35... Kg6 {[%clk 0:00:22.1]} 36.
Rg5+ {[%clk 0:01:08.5]} 36... Kh6 {[%clk 0:00:21.4]} 37. Kd2 {[%clk 0:01:09.1]}
37... Be4 {[%clk 0:00:20.3]} 38. Ke3 {[%clk 0:01:02.2]} 38... Bd5 {[%clk
0:00:20.6]} 39. a4 {[%clk 0:01:01.9]} 39... Re7+ {[%clk 0:00:20.9]} 40. Kd3
{[%clk 0:01:01]} 40... Rg7 {[%clk 0:00:19.7]} 41. c4 {[%clk 0:00:53.5]} 41...
Bf3 {[%clk 0:00:08.3]} 42. Rf5 {[%clk 0:00:50.9]} 42... Re7 {[%clk 0:00:07.5]}
43. b5 {[%clk 0:00:47.9]} 43... Be4+ {[%clk 0:00:07.6]} 44. Kd2 {[%clk
0:00:47.4]} 44... Bxf5 {[%clk 0:00:08.5]} 0-1

[Event "Betsys MČR v online bleskovém šachu 2021"]
[Site "Chess.com"]
[Date "2021.04.17"]
[Round "12"]
[White "JaraLinhart"]
[Black "jachymcarostrelec4"]
[Result "0-1"]
[WhiteElo "1714"]
[BlackElo "1985"]
[TimeControl "180+1"]
[EndTime "11:00:48 PDT"]
[Termination "Uživatel jachymcarostrelec4 zvítězil na čas"]

1. e4 {[%clk 0:02:59.1]} 1... c6 {[%clk 0:03:00]} 2. d4 {[%clk 0:02:56.9]} 2...
d5 {[%clk 0:03:00.9]} 3. e5 {[%clk 0:02:55.3]} 3... Bf5 {[%clk 0:02:59.8]} 4.
Nf3 {[%clk 0:02:55.5]} 4... e6 {[%clk 0:02:59]} 5. Be2 {[%clk 0:02:55.5]} 5...
c5 {[%clk 0:02:58.6]} 6. c4 {[%clk 0:02:30.8]} 6... dxc4 {[%clk 0:02:51]} 7.
Bxc4 {[%clk 0:02:27.2]} 7... Nc6 {[%clk 0:02:50.2]} 8. Bb5 {[%clk 0:02:07.9]}
8... Bxb1 {[%clk 0:02:46.6]} 9. Bxc6+ {[%clk 0:02:05]} 9... bxc6 {[%clk
0:02:45.9]} 10. Rxb1 {[%clk 0:02:02.8]} 10... cxd4 {[%clk 0:02:45.5]} 11. Qxd4
{[%clk 0:01:57]} 11... Qxd4 {[%clk 0:02:41]} 12. Nxd4 {[%clk 0:01:56.6]} 12...
Bb4+ {[%clk 0:02:41.8]} 13. Bd2 {[%clk 0:01:54.9]} 13... Bxd2+ {[%clk
0:02:39.3]} 14. Kxd2 {[%clk 0:01:54.6]} 14... Ne7 {[%clk 0:02:38.2]} 15. Rhc1
{[%clk 0:01:47.9]} 15... O-O-O {[%clk 0:02:32.8]} 16. Ke3 {[%clk 0:01:46.3]}
16... Kb7 {[%clk 0:02:26.3]} 17. b4 {[%clk 0:01:29.7]} 17... Rd5 {[%clk
0:02:21.8]} 18. f4 {[%clk 0:01:26.7]} 18... Rhd8 {[%clk 0:02:19.1]} 19. Nb3
{[%clk 0:01:07.8]} 19... Kb6 {[%clk 0:01:59.8]} 20. a4 {[%clk 0:01:02.5]} 20...
Nf5+ {[%clk 0:01:58.3]} 21. Ke2 {[%clk 0:00:59]} 21... Nd4+ {[%clk 0:01:57.1]}
22. Nxd4 {[%clk 0:00:57.2]} 22... Rxd4 {[%clk 0:01:58]} 23. b5 {[%clk
0:00:50.2]} 23... c5 {[%clk 0:01:39.5]} 24. a5+ {[%clk 0:00:46.2]} 24... Kxa5
{[%clk 0:01:37.9]} 25. Rxc5 {[%clk 0:00:45.8]} 25... Kb6 {[%clk 0:01:35.5]} 26.
Rc6+ {[%clk 0:00:42.3]} 26... Kb7 {[%clk 0:01:35.8]} 27. g3 {[%clk 0:00:26]}
27... Rd2+ {[%clk 0:01:33.9]} 28. Kf3 {[%clk 0:00:25.7]} 28... Rxh2 {[%clk
0:01:31.3]} 29. Rbc1 {[%clk 0:00:21.7]} 29... Rd7 {[%clk 0:01:29]} 30. Rc8
{[%clk 0:00:15.2]} 30... Rb2 {[%clk 0:01:25.4]} 31. Rg8 {[%clk 0:00:10.5]} 31...
g6 {[%clk 0:01:22]} 32. Rcc8 {[%clk 0:00:08.9]} 32... Rxb5 {[%clk 0:01:18.1]}
33. Rcf8 {[%clk 0:00:08.4]} 33... Rc5 {[%clk 0:01:14.7]} 34. Rg7 {[%clk
0:00:08.2]} 34... Rcc7 {[%clk 0:01:13.6]} 35. Rxh7 {[%clk 0:00:08]} 35... a5
{[%clk 0:01:10.8]} 36. Rh1 {[%clk 0:00:06.9]} 36... Kb6 {[%clk 0:01:07.3]} 37.
Ra1 {[%clk 0:00:05.5]} 37... Ra7 {[%clk 0:01:06.4]} 38. Kg4 {[%clk 0:00:05.8]}
38... a4 {[%clk 0:01:05.3]} 39. Ra3 {[%clk 0:00:05.1]} 39... Kb5 {[%clk
0:01:03.8]} 40. Rb8+ {[%clk 0:00:04.9]} 40... Rdb7 {[%clk 0:01:03.4]} 41. Rd8
{[%clk 0:00:03.3]} 41... Kb4 {[%clk 0:01:02.5]} 42. Ra1 {[%clk 0:00:02.7]} 42...
a3 {[%clk 0:01:00.9]} 43. Kg5 {[%clk 0:00:02.5]} 43... a2 {[%clk 0:00:58.6]} 0-1

[Event "Betsys MČR v online bleskovém šachu 2021"]
[Site "Chess.com"]
[Date "2021.04.17"]
[Round "12"]
[White "patrikvagner"]
[Black "petiva3"]
[Result "0-1"]
[WhiteElo "1744"]
[BlackElo "1455"]
[TimeControl "180+1"]
[EndTime "11:00:48 PDT"]
[Termination "Uživatel petiva3 zvítězil matem"]

1. d4 {[%clk 0:03:00.9]} 1... Nf6 {[%clk 0:02:58.7]} 2. c4 {[%clk 0:03:00.3]}
2... e6 {[%clk 0:02:58.9]} 3. Nc3 {[%clk 0:02:59.4]} 3... c5 {[%clk 0:02:59]} 4.
Nf3 {[%clk 0:02:57.5]} 4... d5 {[%clk 0:02:51.9]} 5. cxd5 {[%clk 0:02:55.9]}
5... exd5 {[%clk 0:02:52.1]} 6. Bg5 {[%clk 0:02:53.8]} 6... cxd4 {[%clk
0:02:47.8]} 7. Qxd4 {[%clk 0:02:52.1]} 7... Be7 {[%clk 0:02:44.2]} 8. e3 {[%clk
0:02:48.4]} 8... O-O {[%clk 0:02:43.9]} 9. Bd3 {[%clk 0:02:46.8]} 9... Nc6
{[%clk 0:02:42.9]} 10. Qh4 {[%clk 0:02:41.8]} 10... h6 {[%clk 0:02:38.5]} 11.
Bxf6 {[%clk 0:02:34.9]} 11... Bxf6 {[%clk 0:02:38.6]} 12. Qg3 {[%clk 0:02:32.4]}
12... Nb4 {[%clk 0:02:26.1]} 13. Bb1 {[%clk 0:02:28.5]} 13... Be6 {[%clk
0:02:21.3]} 14. O-O {[%clk 0:02:25.5]} 14... Rc8 {[%clk 0:02:16.1]} 15. a3
{[%clk 0:02:12.8]} 15... Nc6 {[%clk 0:02:10.5]} 16. Bd3 {[%clk 0:02:07]} 16...
Be7 {[%clk 0:02:09.4]} 17. Rac1 {[%clk 0:02:03.9]} 17... Bd6 {[%clk 0:02:09.4]}
18. Qh4 {[%clk 0:01:56.7]} 18... Qxh4 {[%clk 0:01:59]} 19. Nxh4 {[%clk
0:01:56.1]} 19... Ne5 {[%clk 0:01:54]} 20. Be2 {[%clk 0:01:50.6]} 20... g5
{[%clk 0:01:42.8]} 21. Nf3 {[%clk 0:01:49.9]} 21... Nxf3+ {[%clk 0:01:42.5]} 22.
Bxf3 {[%clk 0:01:49.4]} 22... d4 {[%clk 0:01:15.1]} 23. exd4 {[%clk 0:01:46.1]}
23... b6 {[%clk 0:01:08.8]} 24. d5 {[%clk 0:01:42.4]} 24... Bf5 {[%clk
0:01:06.6]} 25. Be4 {[%clk 0:01:39.5]} 25... Bxe4 {[%clk 0:01:04.1]} 26. Nxe4
{[%clk 0:01:39.4]} 26... Be5 {[%clk 0:01:03]} 27. b4 {[%clk 0:01:37.5]} 27...
Rfd8 {[%clk 0:01:01.3]} 28. Rxc8 {[%clk 0:01:34]} 28... Rxc8 {[%clk 0:01:01.2]}
29. d6 {[%clk 0:01:30.1]} 29... Rd8 {[%clk 0:01:00.5]} 30. Rd1 {[%clk
0:01:27.7]} 30... f5 {[%clk 0:00:55]} 31. Ng3 {[%clk 0:01:22.7]} 31... Bxg3
{[%clk 0:00:48.3]} 32. hxg3 {[%clk 0:01:22.2]} 32... Kf7 {[%clk 0:00:48.3]} 33.
Kf1 {[%clk 0:01:22]} 33... Ke6 {[%clk 0:00:47.7]} 34. Ke2 {[%clk 0:01:21]} 34...
Rxd6 {[%clk 0:00:46.9]} 35. Rxd6+ {[%clk 0:01:19.9]} 35... Kxd6 {[%clk
0:00:47.8]} 36. Kd3 {[%clk 0:01:20]} 36... Kd5 {[%clk 0:00:47.5]} 37. a4 {[%clk
0:01:18.1]} 37... a5 {[%clk 0:00:44.3]} 38. b5 {[%clk 0:01:17.5]} 38... h5
{[%clk 0:00:41.6]} 39. f4 {[%clk 0:01:13.5]} 39... gxf4 {[%clk 0:00:37.6]} 40.
gxf4 {[%clk 0:01:13.4]} 40... h4 {[%clk 0:00:36.7]} 41. Ke3 {[%clk 0:01:10.7]}
41... Kc4 {[%clk 0:00:33.8]} 42. Kf3 {[%clk 0:01:10.7]} 42... Kb4 {[%clk
0:00:33.9]} 43. g3 {[%clk 0:01:11]} 43... hxg3 {[%clk 0:00:33.6]} 44. Kxg3
{[%clk 0:01:10.9]} 44... Kxa4 {[%clk 0:00:34.1]} 45. Kh4 {[%clk 0:01:11.3]}
45... Kxb5 {[%clk 0:00:34.4]} 46. Kg5 {[%clk 0:01:11.9]} 46... a4 {[%clk
0:00:34.8]} 47. Kxf5 {[%clk 0:01:12.2]} 47... a3 {[%clk 0:00:35.5]} 48. Kg6
{[%clk 0:01:12.6]} 48... a2 {[%clk 0:00:36.1]} 49. f5 {[%clk 0:01:13.1]} 49...
a1=Q {[%clk 0:00:36]} 50. f6 {[%clk 0:01:14]} 50... Qe5 {[%clk 0:00:34.1]} 51.
f7 {[%clk 0:01:13.2]} 51... Qe6+ {[%clk 0:00:34.3]} 52. Kg7 {[%clk 0:01:12.8]}
52... Qxf7+ {[%clk 0:00:34]} 53. Kxf7 {[%clk 0:01:12.7]} 53... Kc4 {[%clk
0:00:34.4]} 54. Ke7 {[%clk 0:01:12.6]} 54... b5 {[%clk 0:00:34.9]} 55. Kd7
{[%clk 0:01:12.7]} 55... b4 {[%clk 0:00:35.5]} 56. Kc6 {[%clk 0:01:12.8]} 56...
b3 {[%clk 0:00:35.9]} 57. Kd6 {[%clk 0:01:12.5]} 57... b2 {[%clk 0:00:36.3]} 58.
Ke6 {[%clk 0:01:12.7]} 58... b1=Q {[%clk 0:00:36.3]} 59. Kf6 {[%clk 0:01:12.7]}
59... Qe4 {[%clk 0:00:35.9]} 60. Kf7 {[%clk 0:01:12.6]} 60... Kd5 {[%clk
0:00:35.6]} 61. Kg7 {[%clk 0:01:12.4]} 61... Qf3 {[%clk 0:00:35.3]} 62. Kg8
{[%clk 0:01:12.1]} 62... Ke6 {[%clk 0:00:35]} 63. Kh7 {[%clk 0:01:12.1]} 63...
Qg3 {[%clk 0:00:33.7]} 64. Kh8 {[%clk 0:01:10.9]} 64... Kf6 {[%clk 0:00:33.4]}
65. Kh7 {[%clk 0:01:10.9]} 65... Qg7# {[%clk 0:00:33.5]} 0-1